Workbook

Sheet start (hidden)
B2: Das Makro ist momentan nicht aktiviert
B3: Bitte Aktivieren Sie das Makro
B4: Ohne Makro funktioniert diese Datei nicht
B6: roland.schnurr@sixsigmablackbelt.de
B8: https://www.sixsigmablackbelt.de
B10: Abhängig von den Einstellungen in Microsoft Office kann es sein, dass Microsoft Dateien aus dem Internet
B11: mit der Endung .xlsb grundsätzlich beim Öffnen mit folgendem Warnhinweis versieht.
B23: Alle Dateien auf dieser Website sind grundsätzlich mit virustotal auf Freiheit von Viren überprüft.
B24: Virustotal prüft mit den 63 gängigsten Virenprogrammen auf Virenfreiheit.
B26: Möchten Sie mit unseren Dateien arbeiten und Microsoft gibt Ihnen obigen Hinweis, gehen Sie wie folgt vor:
B28: ="- Speichern Sie die Datei" -> - Speichern Sie die Datei
B29: ="- Wählen Sie den Speicherort (im Standardordner „downloads“)." -> - Wählen Sie den Speicherort (im Standardordner „downloads“).
B30: ="- Datei auswählen" -> - Datei auswählen
B31: ="- rechte Maustaste" -> - rechte Maustaste
B32: ="- Ein Fenster erscheint. Der letzte Punkt in diesem Fenster ist „Eigenschaften“" -> - Ein Fenster erscheint. Der letzte Punkt in diesem Fenster ist „Eigenschaften“
B33: ="- Wählen Sie diesen Punkt aus" -> - Wählen Sie diesen Punkt aus
B34: ="- Setzen Sie in dem erscheinenden Fenster den Haken bei „Zulassen“ (siehe unten)" -> - Setzen Sie in dem erscheinenden Fenster den Haken bei „Zulassen“ (siehe unten)
B35: ="- Klicken Sie auf „Übernehmen“ und dann auf „OK“" -> - Klicken Sie auf „Übernehmen“ und dann auf „OK“
B36: ="- Danach können Sie die Datei öffnen und mit ihr arbeiten." -> - Danach können Sie die Datei öffnen und mit ihr arbeiten.

Sheet input
E2: Messsystemanalyse Verfahren 1: Cg / Cgk
B3: Akt. Dat.: | C3: =TODAY() -> 2026-04-07 | D3: Bearb.Name: | E3: Max Mustermann | G3: Abt./Kst.: | H3: Musterfirma | J3: Prüfort: | K3: Messraum | M3: Diese Version ist eingeschränkt
B4: Prüfmittel | E4: Normal | H4: Merkmal | M4: - Es sind nur 15 Werte berechenbar
B5: Bezeichnung: | C5: Vorrichtung | E5: Bezeichnung: | F5: Ring | H5: Bezeichnung: | I5: Durchmesser | M5: ="- Die Datei ist nur als .xlsm speicherbar" -> - Die Datei ist nur als .xlsm speicherbar
B6: Nummer: | C6: 452344 | E6: Nummer: | F6: 1437 | H6: Nummer | I6: 1 | M6: Die Version für 50 zu berechnende Werte (M0460) können Sie unter untenstehendem Link erwerben
B7: Auflösung: | C7: 0.001 | E7: Istwert: | F7: 20.302 | H7: Nennmaß: | I7: 20.3 | J7: OSG: | K7: 20.45 | M7: =HYPERLINK("https://www.sixsigmablackbelt.de/preisvergleich/","Preise und Bestellung") -> Preise und Bestellung
B8: Prüfgrnd.: | C8: Abnahme | E8: Einheit: | F8: mm | H8: Einheit: | I8: mm | J8: USG: | K8: 20.15
E9: U Kal | F9: 0.0002 | H9: k - faktor | I9: 6 | M9: Fragen gerne an:
B10: Bemerkung: | M10: =HYPERLINK("mailto:roland.schnurr@sixsigmablackbelt.de","roland.schnurr@sixsigmablackbelt.de") -> roland.schnurr@sixsigmablackbelt.de
J14: =" + "&I9/2&" sg" -> + 3 sg
J15: =" - "&I9/2&" sg" -> - 3 sg
B22: Einzelwerte
B23: ="1 - 5" -> 1 - 5 | C23: ="6 - 10" -> 6 - 10 | D23: ="11 - 15" -> 11 - 15 | E23: ="16 - 20" -> 16 - 20 | F23: ="21 - 25" -> 21 - 25 | G23: ="26 - 30" -> 26 - 30 | H23: ="31 - 35" -> 31 - 35 | I23: ="36 - 40" -> 36 - 40 | J23: ="41 - 45" -> 41 - 45 | K23: ="46 - 50" -> 46 - 50
B24: 20.303 | C24: 20.296 | D24: 20.311
B25: 20.301 | C25: 20.301 | D25: 20.297
B26: 20.304 | C26: 20.3 | D26: 20.295
B27: 20.303 | C27: 20.307 | D27: 20.302
B28: 20.306 | C28: 20.305 | D28: 20.304
B30: Spezifikationswerte | D30: Gemessene Werte | F30: Statistische Werte | H30: Syst. Messabweichung
B31: xm | C31: =sixmsa1_c31(F7) -> 20.302 | F31: xg | G31: =AVERAGE(xi3s) -> 20.30233333 | H31: BIAS | I31: =Mittelwert3s-xm3s -> 0.0003333333333
B32: xm - 0,1*T | C32: =sixmsa1_c32(xm3s,T3s) -> 20.272 | D32: xmin. | E32: =MIN(xi3s) -> 20.295 | F32: ="xg - "&I9/2&" * sg" -> xg - 3 * sg | G32: =Mittelwert3s-I9/2*sg3s -> 20.28952151 | H32: t | I32: =SQRT(E35)*ABS(Mittelwert3s-xm3s)/sg3s -> 0.3022975554
B33: xm + 0,1*T | C33: =sixmsa1_c33(xm3s,T3s) -> 20.332 | D33: xmax. | E33: =MAX(xi3s) -> 20.311 | F33: ="xg + "&I9/2&" * sg" -> xg + 3 * sg | G33: =Mittelwert3s+I9/2*sg3s -> 20.31514516 | H33: p Wert | I33: =_xlfn.T.DIST.2T(ABS(I32),(E35-1)) -> 0.766869746
B34: 0,2 * T | C34: =sixmsa1_c34(C35) -> 0.06 | D34: R | E34: =xcv-xmin3s -> 0.016 | F34: =""&I9&" * sg" -> 6 * sg | G34: =I9*sg3s -> 0.02562364979
B35: T | C35: =OSG3s-USG3s -> 0.3 | D35: nges. | E35: =COUNT(xi3s) -> 15 | F35: sg | G35: =STDEV(xi3s) -> 0.004270608298
B37: Mindestforderung an die Prüfmittelkennzahl | F37: Cg ≥ | G37: 1.33
F38: Cgk ≥ | G38: 1.33
I40: Messsystem fähig für T bis
C41: = | D41: =C34/G34 -> 2.341586795 | I41: Tmin (Cg) = | J41: =Forderungcg3s*G34/0.2 -> 0.1703972711 | K41: =Einheit3s -> mm
C43: = | D43: =(0.1*T3s-ABS(xg3s-xm3s))/(I9/2*sg3s) -> 2.315569164 | I43: Tmin (Cgk) = | J43: =(G34/2*Forderungcgk3s+ABS(I31))/0.1 -> 0.1737306044 | K43: =Einheit3s -> mm
B45: Auflösung in % von T = | D45: =ROUND(Aufloesung/T3s,10) -> 0.0033333333 | I45: Tmin (RE) = | J45: =C7/0.05 -> 0.02 | K45: =Einheit3s -> mm
B48: Hinweise: | C48: 1.) | D48: =IF(C7,IF(D45<=0.05,"Auflösung ist ausreichend ! (Auflösung ist kleiner oder gleich 5% !)","Das Messgerät ist aufgrund der Auflösung für die Messaufgabe nicht geeignet!"),) -> Auflösung ist ausreichend ! (Auflösung ist kleiner oder gleich 5% !)
C49: 2.) | D49: =IF(UKAL3s<0.1*T3s,"Die Unsicherheit der Kalibrierung des Normales ist ausreichend (UKAL<0,1*T)","Die Unsicherheit der Kalibrierung des Normales ist zu groß") -> Die Unsicherheit der Kalibrierung des Normales ist ausreichend (UKAL<0,1*T)
C50: 3.) | D50: =IF(AND(cgk3s>=Forderungcgk3s,cg3s>=Forderungcg3s),"Das Messmittel ist fähig und erfüllt die Mindestforderung an die Prüfmittelkennzahl", "Messmittel ist nicht fähig") -> Das Messmittel ist fähig und erfüllt die Mindestforderung an die Prüfmittelkennzahl
B52: Datum: | C52: ________ | E52: Unterschrift: | F52: __________________ | I52: Abteilung: | J52: __________________

Sheet MSA Verfahren 1 Berechnung 2s (hidden)
D1: Diagramm | P1: Diagramm cg und cgk
A3: Bezeichnung für Diagramm | B3: =#REF! ->  | D3: Durchmesser | E3: Mittelwert Merkmal | F3: ="+2 sg" -> +2 sg | G3: ="+3 sg" -> +3 sg | H3: ="-2 sg" -> -2 sg | I3: ="-3 sg" -> -3 sg | J3: OSG Merkmal | K3: USG Merkmal | L3: Mittelwert Normal | M3: USG Normal | N3: OSG Normal | P3: cgk | Q3: 0 | R3: =cgk2s ->  | S3: 0
A4: i | B4: x(i) | D4: x(i) | E4: xg | F4: xg+2*sg | G4: xg+3*sg | H4: xg-2*sg | I4: xg-3*sg | J4: OSG | K4: USG | L4: xm | M4: xm-0,1*T | N4: xm+0,1*T | P4: Anforderung cgk | Q4: =Forderungcgk2s ->  | R4: 0 | S4: =ABS(Q4-R3)+0.2 -> 
A5: 1 | B5: =IF(#REF!="",#N/A,#REF!) ->  | C5: =IF(B5<>"",A5,1) ->  | D5: =IF(B5<>"",B5,"") ->  | E5: =Mittelwert2s ->  | F5: =xg2s+2*sg2s ->  | G5: =xg2s+3*sg2s ->  | H5: =xg2s-2*sg2s ->  | I5: =xg2s-3*sg2s ->  | J5: =OSG2s ->  | K5: =USG2s ->  | L5: =xm2s ->  | M5: =xm2s-0.1*T2s ->  | N5: =xm2s+0.1*T2s -> 
A6: 2 | B6: =IF(#REF!="",#N/A,#REF!) ->  | C6: =IF(B6<>"",A6,C5) ->  | D6: =IF(B6<>"",B6,"") ->  | P6: cg | Q6: 0 | R6: =cg2s ->  | S6: 0
A7: 3 | B7: =IF(#REF!="",#N/A,#REF!) ->  | C7: =IF(B7<>"",A7,C6) ->  | P7: Anforderung cg | Q7: =Forderungcg2s ->  | R7: 0 | S7: =ABS(Q7-R6)+0.2 -> 
A8: 4 | B8: =IF(#REF!="",#N/A,#REF!) -> 
A9: 5 | B9: =IF(#REF!="",#N/A,#REF!) -> 
A10: 6 | B10: =IF(#REF!="",#N/A,#REF!) -> 
A11: 7 | B11: =IF(#REF!="",#N/A,#REF!) -> 
A12: 8 | B12: =IF(#REF!="",#N/A,#REF!) -> 
A13: 9 | B13: =IF(#REF!="",#N/A,#REF!) -> 
A14: 10 | B14: =IF(#REF!="",#N/A,#REF!) -> 
A15: 11 | B15: =IF(#REF!="",#N/A,#REF!) ->  | P15: Lizenziert für | Q15: Ihre_Firma
A16: 12 | B16: =IF(#REF!="",#N/A,#REF!) -> 
A17: 13 | B17: =IF(#REF!="",#N/A,#REF!) ->  | P17: Quelle: | Q17: http://www.sixsigmablackbelt.de/msa-messsystemanalyse-messmittelfaehigkeit/
A18: 14 | B18: =IF(#REF!="",#N/A,#REF!) -> 
A19: 15 | B19: =IF(#REF!="",#N/A,#REF!) ->  | P19: Literatur: | Q19: Eignungsnachweis von Prüfprozessen: Prüfmittelfähigkeit und Messunsicherheit im aktuellen Normenumfeld
A20: 16 | B20: =IF(#REF!="",#N/A,#REF!) ->  | Q20: Statistische Verfahren zur Maschinen- und Prozessqualifikation
A21: 17 | B21: =IF(#REF!="",#N/A,#REF!) -> 
A22: 18 | B22: =IF(#REF!="",#N/A,#REF!) ->  | P22: Berechnung mit Minitab
A23: 19 | B23: =IF(#REF!="",#N/A,#REF!) -> 
A24: 20 | B24: =IF(#REF!="",#N/A,#REF!) -> 
A25: 21 | B25: =IF(#REF!="",#N/A,#REF!) -> 
A26: 22 | B26: =IF(#REF!="",#N/A,#REF!) -> 
A27: 23 | B27: =IF(#REF!="",#N/A,#REF!) -> 
A28: 24 | B28: =IF(#REF!="",#N/A,#REF!) -> 
A29: 25 | B29: =IF(#REF!="",#N/A,#REF!) -> 
A30: 26 | B30: =IF(#REF!="",#N/A,#REF!) -> 
A31: 27 | B31: =IF(#REF!="",#N/A,#REF!) -> 
A32: 28 | B32: =IF(#REF!="",#N/A,#REF!) -> 
A33: 29 | B33: =IF(#REF!="",#N/A,#REF!) -> 
A34: 30 | B34: =IF(#REF!="",#N/A,#REF!) -> 
A35: 31 | B35: =IF(#REF!="",#N/A,#REF!) -> 
A36: 32 | B36: =IF(#REF!="",#N/A,#REF!) -> 
A37: 33 | B37: =IF(#REF!="",#N/A,#REF!) ->  | E37: =Mittelwert2s ->  | F37: =xg2s+2*sg2s ->  | G37: =xg2s+3*sg2s ->  | H37: =xg2s-2*sg2s ->  | I37: =xg2s-3*sg2s ->  | J37: =OSG2s ->  | K37: =USG2s ->  | L37: =xm2s ->  | M37: =xm2s-0.1*T2s ->  | N37: =xm2s+0.1*T2s -> 
A38: 34 | B38: =IF(#REF!="",#N/A,#REF!) -> 
A39: 35 | B39: =IF(#REF!="",#N/A,#REF!) -> 
A40: 36 | B40: =IF(#REF!="",#N/A,#REF!) -> 
A41: 37 | B41: =IF(#REF!="",#N/A,#REF!) -> 
A42: 38 | B42: =IF(#REF!="",#N/A,#REF!) -> 
A43: 39 | B43: =IF(#REF!="",#N/A,#REF!) -> 
A44: 40 | B44: =IF(#REF!="",#N/A,#REF!) -> 
A45: 41 | B45: =IF(#REF!="",#N/A,#REF!) -> 
A46: 42 | B46: =IF(#REF!="",#N/A,#REF!) -> 
A47: 43 | B47: =IF(#REF!="",#N/A,#REF!) -> 
A48: 44 | B48: =IF(#REF!="",#N/A,#REF!) -> 
A49: 45 | B49: =IF(#REF!="",#N/A,#REF!) -> 
A50: 46 | B50: =IF(#REF!="",#N/A,#REF!) -> 
A51: 47 | B51: =IF(#REF!="",#N/A,#REF!) -> 
A52: 48 | B52: =IF(#REF!="",#N/A,#REF!) -> 
A53: 49 | B53: =IF(#REF!="",#N/A,#REF!) -> 
A54: 50 | B54: =IF(#REF!="",#N/A,#REF!) -> 

Sheet calculation (hidden)
D1: Diagramm | P1: Diagramm cg und cgk
A3: Bezeichnung für Diagramm | B3: =input!$I$5 -> Durchmesser | D3: Durchmesser | E3: Mittelwert Merkmal | F3: ="+2 sg" -> +2 sg | G3: ="+3 sg" -> +3 sg | H3: ="-2 sg" -> -2 sg | I3: ="-3 sg" -> -3 sg | J3: OSG Merkmal | K3: USG Merkmal | L3: Mittelwert Normal | M3: USG Normal | N3: OSG Normal | P3: cgk | Q3: 0 | R3: =cgk3s -> 2.315569164 | S3: 0
A4: i | B4: x(i) | D4: x(i) | E4: xg | F4: xg+2*sg | G4: xg+3*sg | H4: xg-2*sg | I4: xg-3*sg | J4: OSG | K4: USG | L4: xm | M4: xm-0,1*T | N4: xm+0,1*T | P4: Anforderung cgk | Q4: =Forderungcgk3s -> 1.33 | R4: 0 | S4: =ABS(Q4-R3)+0.2 -> 1.185569164
A5: 1 | B5: =IF(input!B24="",#N/A,input!B24) -> 20.303 | C5: =IF(B5<>"",A5,1) -> 1 | D5: =IF(B5<>"",B5,"") -> 20.303 | E5: =Mittelwert3s -> 20.30233333 | F5: =xg3s+input!$I$9/2*sg3s -> 20.31514516 | G5: =xg3s+input!$I$9/2*sg3s -> 20.31514516 | H5: =xg3s-input!$I$9/2*sg3s -> 20.28952151 | I5: =xg3s-input!$I$9/2*sg3s -> 20.28952151 | J5: =OSG3s -> 20.45 | K5: =USG3s -> 20.15 | L5: =xm3s -> 20.302 | M5: =xm3s-0.1*T3s -> 20.272 | N5: =xm3s+0.1*T3s -> 20.332
A6: 2 | B6: =IF(input!B25="",#N/A,input!B25) -> 20.301 | C6: =IF(B6<>"",A6,C5) -> 2 | D6: =IF(B6<>"",B6,D5) -> 20.301 | E6: 20.30233333 | F6: =xg3s+input!$I$9/2*sg3s -> 20.31514516 | G6: =xg3s+input!$I$9/2*sg3s -> 20.31514516 | H6: =xg3s-input!$I$9/2*sg3s -> 20.28952151 | I6: =xg3s-input!$I$9/2*sg3s -> 20.28952151 | J6: 20.45 | K6: 20.15 | L6: 20.302 | M6: 20.272 | N6: 20.332 | P6: cg | Q6: 0 | R6: =cg3s -> 2.341586795 | S6: 0
A7: 3 | B7: =IF(input!B26="",#N/A,input!B26) -> 20.304 | C7: =IF(B7<>"",A7,C6) -> 3 | D7: =IF(B7<>"",B7,D6) -> 20.304 | E7: 20.30233333 | F7: =xg3s+input!$I$9/2*sg3s -> 20.31514516 | G7: =xg3s+input!$I$9/2*sg3s -> 20.31514516 | H7: =xg3s-input!$I$9/2*sg3s -> 20.28952151 | I7: =xg3s-input!$I$9/2*sg3s -> 20.28952151 | J7: 20.45 | K7: 20.15 | L7: 20.302 | M7: 20.272 | N7: 20.332 | P7: Anforderung cg | Q7: =Forderungcg3s -> 1.33 | R7: 0 | S7: =ABS(Q7-R6)+0.2 -> 1.211586795
A8: 4 | B8: =IF(input!B27="",#N/A,input!B27) -> 20.303 | C8: 4 | D8: 20.303 | E8: 20.30233333 | F8: =xg3s+input!$I$9/2*sg3s -> 20.31514516 | G8: =xg3s+input!$I$9/2*sg3s -> 20.31514516 | H8: =xg3s-input!$I$9/2*sg3s -> 20.28952151 | I8: =xg3s-input!$I$9/2*sg3s -> 20.28952151 | J8: 20.45 | K8: 20.15 | L8: 20.302 | M8: 20.272 | N8: 20.332
A9: 5 | B9: =IF(input!B28="",#N/A,input!B28) -> 20.306 | C9: 5 | D9: 20.306 | E9: 20.30233333 | F9: =xg3s+input!$I$9/2*sg3s -> 20.31514516 | G9: =xg3s+input!$I$9/2*sg3s -> 20.31514516 | H9: =xg3s-input!$I$9/2*sg3s -> 20.28952151 | I9: =xg3s-input!$I$9/2*sg3s -> 20.28952151 | J9: 20.45 | K9: 20.15 | L9: 20.302 | M9: 20.272 | N9: 20.332
A10: 6 | B10: =IF(input!C24="",#N/A,input!C24) -> 20.296 | C10: 6 | D10: 20.296 | E10: 20.30233333 | F10: =xg3s+input!$I$9/2*sg3s -> 20.31514516 | G10: =xg3s+input!$I$9/2*sg3s -> 20.31514516 | H10: =xg3s-input!$I$9/2*sg3s -> 20.28952151 | I10: =xg3s-input!$I$9/2*sg3s -> 20.28952151 | J10: 20.45 | K10: 20.15 | L10: 20.302 | M10: 20.272 | N10: 20.332
A11: 7 | B11: =IF(input!C25="",#N/A,input!C25) -> 20.301 | C11: 7 | D11: 20.301 | E11: 20.30233333 | F11: =xg3s+input!$I$9/2*sg3s -> 20.31514516 | G11: =xg3s+input!$I$9/2*sg3s -> 20.31514516 | H11: =xg3s-input!$I$9/2*sg3s -> 20.28952151 | I11: =xg3s-input!$I$9/2*sg3s -> 20.28952151 | J11: 20.45 | K11: 20.15 | L11: 20.302 | M11: 20.272 | N11: 20.332
A12: 8 | B12: =IF(input!C26="",#N/A,input!C26) -> 20.3 | C12: 8 | D12: 20.3 | E12: 20.30233333 | F12: =xg3s+input!$I$9/2*sg3s -> 20.31514516 | G12: =xg3s+input!$I$9/2*sg3s -> 20.31514516 | H12: =xg3s-input!$I$9/2*sg3s -> 20.28952151 | I12: =xg3s-input!$I$9/2*sg3s -> 20.28952151 | J12: 20.45 | K12: 20.15 | L12: 20.302 | M12: 20.272 | N12: 20.332
A13: 9 | B13: =IF(input!C27="",#N/A,input!C27) -> 20.307 | C13: 9 | D13: 20.307 | E13: 20.30233333 | F13: =xg3s+input!$I$9/2*sg3s -> 20.31514516 | G13: =xg3s+input!$I$9/2*sg3s -> 20.31514516 | H13: =xg3s-input!$I$9/2*sg3s -> 20.28952151 | I13: =xg3s-input!$I$9/2*sg3s -> 20.28952151 | J13: 20.45 | K13: 20.15 | L13: 20.302 | M13: 20.272 | N13: 20.332
A14: 10 | B14: =IF(input!C28="",#N/A,input!C28) -> 20.305 | C14: 10 | D14: 20.305 | E14: 20.30233333 | F14: =xg3s+input!$I$9/2*sg3s -> 20.31514516 | G14: =xg3s+input!$I$9/2*sg3s -> 20.31514516 | H14: =xg3s-input!$I$9/2*sg3s -> 20.28952151 | I14: =xg3s-input!$I$9/2*sg3s -> 20.28952151 | J14: 20.45 | K14: 20.15 | L14: 20.302 | M14: 20.272 | N14: 20.332
A15: 11 | B15: =IF(input!D24="",#N/A,input!D24) -> 20.311 | C15: 11 | D15: 20.311 | E15: 20.30233333 | F15: =xg3s+input!$I$9/2*sg3s -> 20.31514516 | G15: =xg3s+input!$I$9/2*sg3s -> 20.31514516 | H15: =xg3s-input!$I$9/2*sg3s -> 20.28952151 | I15: =xg3s-input!$I$9/2*sg3s -> 20.28952151 | J15: 20.45 | K15: 20.15 | L15: 20.302 | M15: 20.272 | N15: 20.332
A16: 12 | B16: =IF(input!D25="",#N/A,input!D25) -> 20.297 | C16: 12 | D16: 20.297 | E16: 20.30233333 | F16: =xg3s+input!$I$9/2*sg3s -> 20.31514516 | G16: =xg3s+input!$I$9/2*sg3s -> 20.31514516 | H16: =xg3s-input!$I$9/2*sg3s -> 20.28952151 | I16: =xg3s-input!$I$9/2*sg3s -> 20.28952151 | J16: 20.45 | K16: 20.15 | L16: 20.302 | M16: 20.272 | N16: 20.332
A17: 13 | B17: =IF(input!D26="",#N/A,input!D26) -> 20.295 | C17: 13 | D17: 20.295 | E17: 20.30233333 | F17: =xg3s+input!$I$9/2*sg3s -> 20.31514516 | G17: =xg3s+input!$I$9/2*sg3s -> 20.31514516 | H17: =xg3s-input!$I$9/2*sg3s -> 20.28952151 | I17: =xg3s-input!$I$9/2*sg3s -> 20.28952151 | J17: 20.45 | K17: 20.15 | L17: 20.302 | M17: 20.272 | N17: 20.332 | P17: Quelle: | Q17: http://www.sixsigmablackbelt.de/msa-messsystemanalyse-messmittelfaehigkeit/
A18: 14 | B18: =IF(input!D27="",#N/A,input!D27) -> 20.302 | C18: 14 | D18: 20.302 | E18: 20.30233333 | F18: =xg3s+input!$I$9/2*sg3s -> 20.31514516 | G18: =xg3s+input!$I$9/2*sg3s -> 20.31514516 | H18: =xg3s-input!$I$9/2*sg3s -> 20.28952151 | I18: =xg3s-input!$I$9/2*sg3s -> 20.28952151 | J18: 20.45 | K18: 20.15 | L18: 20.302 | M18: 20.272 | N18: 20.332
A19: 15 | B19: =IF(input!D28="",#N/A,input!D28) -> 20.304 | C19: 15 | D19: 20.304 | E19: 20.30233333 | F19: =xg3s+input!$I$9/2*sg3s -> 20.31514516 | G19: =xg3s+input!$I$9/2*sg3s -> 20.31514516 | H19: =xg3s-input!$I$9/2*sg3s -> 20.28952151 | I19: =xg3s-input!$I$9/2*sg3s -> 20.28952151 | J19: 20.45 | K19: 20.15 | L19: 20.302 | M19: 20.272 | N19: 20.332 | P19: Literatur: | Q19: Eignungsnachweis von Prüfprozessen: Prüfmittelfähigkeit und Messunsicherheit im aktuellen Normenumfeld
A20: 16 | C20: 15 | D20: 20.304 | E20: 20.30233333 | F20: =xg3s+input!$I$9/2*sg3s -> 20.31514516 | G20: =xg3s+input!$I$9/2*sg3s -> 20.31514516 | H20: =xg3s-input!$I$9/2*sg3s -> 20.28952151 | I20: =xg3s-input!$I$9/2*sg3s -> 20.28952151 | J20: 20.45 | K20: 20.15 | L20: 20.302 | M20: 20.272 | N20: 20.332 | Q20: Statistische Verfahren zur Maschinen- und Prozessqualifikation
A21: 17 | C21: 15 | D21: 20.304 | E21: 20.30233333 | F21: =xg3s+input!$I$9/2*sg3s -> 20.31514516 | G21: =xg3s+input!$I$9/2*sg3s -> 20.31514516 | H21: =xg3s-input!$I$9/2*sg3s -> 20.28952151 | I21: =xg3s-input!$I$9/2*sg3s -> 20.28952151 | J21: 20.45 | K21: 20.15 | L21: 20.302 | M21: 20.272 | N21: 20.332
A22: 18 | C22: 15 | D22: 20.304 | E22: 20.30233333 | F22: =xg3s+input!$I$9/2*sg3s -> 20.31514516 | G22: =xg3s+input!$I$9/2*sg3s -> 20.31514516 | H22: =xg3s-input!$I$9/2*sg3s -> 20.28952151 | I22: =xg3s-input!$I$9/2*sg3s -> 20.28952151 | J22: 20.45 | K22: 20.15 | L22: 20.302 | M22: 20.272 | N22: 20.332 | P22: Berechnung mit Minitab
A23: 19 | C23: 15 | D23: 20.304 | E23: 20.30233333 | F23: =xg3s+input!$I$9/2*sg3s -> 20.31514516 | G23: =xg3s+input!$I$9/2*sg3s -> 20.31514516 | H23: =xg3s-input!$I$9/2*sg3s -> 20.28952151 | I23: =xg3s-input!$I$9/2*sg3s -> 20.28952151 | J23: 20.45 | K23: 20.15 | L23: 20.302 | M23: 20.272 | N23: 20.332
A24: 20 | C24: 15 | D24: 20.304 | E24: 20.30233333 | F24: =xg3s+input!$I$9/2*sg3s -> 20.31514516 | G24: =xg3s+input!$I$9/2*sg3s -> 20.31514516 | H24: =xg3s-input!$I$9/2*sg3s -> 20.28952151 | I24: =xg3s-input!$I$9/2*sg3s -> 20.28952151 | J24: 20.45 | K24: 20.15 | L24: 20.302 | M24: 20.272 | N24: 20.332
A25: 21 | C25: 15 | D25: 20.304 | E25: 20.30233333 | F25: =xg3s+input!$I$9/2*sg3s -> 20.31514516 | G25: =xg3s+input!$I$9/2*sg3s -> 20.31514516 | H25: =xg3s-input!$I$9/2*sg3s -> 20.28952151 | I25: =xg3s-input!$I$9/2*sg3s -> 20.28952151 | J25: 20.45 | K25: 20.15 | L25: 20.302 | M25: 20.272 | N25: 20.332
A26: 22 | C26: 15 | D26: 20.304 | E26: 20.30233333 | F26: =xg3s+input!$I$9/2*sg3s -> 20.31514516 | G26: =xg3s+input!$I$9/2*sg3s -> 20.31514516 | H26: =xg3s-input!$I$9/2*sg3s -> 20.28952151 | I26: =xg3s-input!$I$9/2*sg3s -> 20.28952151 | J26: 20.45 | K26: 20.15 | L26: 20.302 | M26: 20.272 | N26: 20.332
A27: 23 | C27: 15 | D27: 20.304 | E27: 20.30233333 | F27: =xg3s+input!$I$9/2*sg3s -> 20.31514516 | G27: =xg3s+input!$I$9/2*sg3s -> 20.31514516 | H27: =xg3s-input!$I$9/2*sg3s -> 20.28952151 | I27: =xg3s-input!$I$9/2*sg3s -> 20.28952151 | J27: 20.45 | K27: 20.15 | L27: 20.302 | M27: 20.272 | N27: 20.332
A28: 24 | C28: 15 | D28: 20.304 | E28: 20.30233333 | F28: =xg3s+input!$I$9/2*sg3s -> 20.31514516 | G28: =xg3s+input!$I$9/2*sg3s -> 20.31514516 | H28: =xg3s-input!$I$9/2*sg3s -> 20.28952151 | I28: =xg3s-input!$I$9/2*sg3s -> 20.28952151 | J28: 20.45 | K28: 20.15 | L28: 20.302 | M28: 20.272 | N28: 20.332
A29: 25 | C29: 15 | D29: 20.304 | E29: 20.30233333 | F29: =xg3s+input!$I$9/2*sg3s -> 20.31514516 | G29: =xg3s+input!$I$9/2*sg3s -> 20.31514516 | H29: =xg3s-input!$I$9/2*sg3s -> 20.28952151 | I29: =xg3s-input!$I$9/2*sg3s -> 20.28952151 | J29: 20.45 | K29: 20.15 | L29: 20.302 | M29: 20.272 | N29: 20.332
A30: 26 | C30: 15 | D30: 20.304 | E30: 20.30233333 | F30: =xg3s+input!$I$9/2*sg3s -> 20.31514516 | G30: =xg3s+input!$I$9/2*sg3s -> 20.31514516 | H30: =xg3s-input!$I$9/2*sg3s -> 20.28952151 | I30: =xg3s-input!$I$9/2*sg3s -> 20.28952151 | J30: 20.45 | K30: 20.15 | L30: 20.302 | M30: 20.272 | N30: 20.332
A31: 27 | C31: 15 | D31: 20.304 | E31: 20.30233333 | F31: =xg3s+input!$I$9/2*sg3s -> 20.31514516 | G31: =xg3s+input!$I$9/2*sg3s -> 20.31514516 | H31: =xg3s-input!$I$9/2*sg3s -> 20.28952151 | I31: =xg3s-input!$I$9/2*sg3s -> 20.28952151 | J31: 20.45 | K31: 20.15 | L31: 20.302 | M31: 20.272 | N31: 20.332
A32: 28 | C32: 15 | D32: 20.304 | E32: 20.30233333 | F32: =xg3s+input!$I$9/2*sg3s -> 20.31514516 | G32: =xg3s+input!$I$9/2*sg3s -> 20.31514516 | H32: =xg3s-input!$I$9/2*sg3s -> 20.28952151 | I32: =xg3s-input!$I$9/2*sg3s -> 20.28952151 | J32: 20.45 | K32: 20.15 | L32: 20.302 | M32: 20.272 | N32: 20.332
A33: 29 | C33: 15 | D33: 20.304 | E33: 20.30233333 | F33: =xg3s+input!$I$9/2*sg3s -> 20.31514516 | G33: =xg3s+input!$I$9/2*sg3s -> 20.31514516 | H33: =xg3s-input!$I$9/2*sg3s -> 20.28952151 | I33: =xg3s-input!$I$9/2*sg3s -> 20.28952151 | J33: 20.45 | K33: 20.15 | L33: 20.302 | M33: 20.272 | N33: 20.332
A34: 30 | C34: 15 | D34: 20.304 | E34: 20.30233333 | F34: =xg3s+input!$I$9/2*sg3s -> 20.31514516 | G34: =xg3s+input!$I$9/2*sg3s -> 20.31514516 | H34: =xg3s-input!$I$9/2*sg3s -> 20.28952151 | I34: =xg3s-input!$I$9/2*sg3s -> 20.28952151 | J34: 20.45 | K34: 20.15 | L34: 20.302 | M34: 20.272 | N34: 20.332
A35: 31 | C35: 15 | D35: 20.304 | E35: 20.30233333 | F35: =xg3s+input!$I$9/2*sg3s -> 20.31514516 | G35: =xg3s+input!$I$9/2*sg3s -> 20.31514516 | H35: =xg3s-input!$I$9/2*sg3s -> 20.28952151 | I35: =xg3s-input!$I$9/2*sg3s -> 20.28952151 | J35: 20.45 | K35: 20.15 | L35: 20.302 | M35: 20.272 | N35: 20.332
A36: 32 | C36: 15 | D36: 20.304 | E36: 20.30233333 | F36: =xg3s+input!$I$9/2*sg3s -> 20.31514516 | G36: =xg3s+input!$I$9/2*sg3s -> 20.31514516 | H36: =xg3s-input!$I$9/2*sg3s -> 20.28952151 | I36: =xg3s-input!$I$9/2*sg3s -> 20.28952151 | J36: 20.45 | K36: 20.15 | L36: 20.302 | M36: 20.272 | N36: 20.332
A37: 33 | C37: 15 | D37: 20.304 | E37: 20.30233333 | F37: =xg3s+input!$I$9/2*sg3s -> 20.31514516 | G37: =xg3s+input!$I$9/2*sg3s -> 20.31514516 | H37: =xg3s-input!$I$9/2*sg3s -> 20.28952151 | I37: =xg3s-input!$I$9/2*sg3s -> 20.28952151 | J37: 20.45 | K37: 20.15 | L37: 20.302 | M37: 20.272 | N37: 20.332
A38: 34 | C38: 15 | D38: 20.304 | E38: 20.30233333 | F38: =xg3s+input!$I$9/2*sg3s -> 20.31514516 | G38: =xg3s+input!$I$9/2*sg3s -> 20.31514516 | H38: =xg3s-input!$I$9/2*sg3s -> 20.28952151 | I38: =xg3s-input!$I$9/2*sg3s -> 20.28952151 | J38: 20.45 | K38: 20.15 | L38: 20.302 | M38: 20.272 | N38: 20.332
A39: 35 | C39: 15 | D39: 20.304 | E39: 20.30233333 | F39: =xg3s+input!$I$9/2*sg3s -> 20.31514516 | G39: =xg3s+input!$I$9/2*sg3s -> 20.31514516 | H39: =xg3s-input!$I$9/2*sg3s -> 20.28952151 | I39: =xg3s-input!$I$9/2*sg3s -> 20.28952151 | J39: 20.45 | K39: 20.15 | L39: 20.302 | M39: 20.272 | N39: 20.332
A40: 36 | C40: 15 | D40: 20.304 | E40: 20.30233333 | F40: =xg3s+input!$I$9/2*sg3s -> 20.31514516 | G40: =xg3s+input!$I$9/2*sg3s -> 20.31514516 | H40: =xg3s-input!$I$9/2*sg3s -> 20.28952151 | I40: =xg3s-input!$I$9/2*sg3s -> 20.28952151 | J40: 20.45 | K40: 20.15 | L40: 20.302 | M40: 20.272 | N40: 20.332
A41: 37 | C41: 15 | D41: 20.304 | E41: 20.30233333 | F41: =xg3s+input!$I$9/2*sg3s -> 20.31514516 | G41: =xg3s+input!$I$9/2*sg3s -> 20.31514516 | H41: =xg3s-input!$I$9/2*sg3s -> 20.28952151 | I41: =xg3s-input!$I$9/2*sg3s -> 20.28952151 | J41: 20.45 | K41: 20.15 | L41: 20.302 | M41: 20.272 | N41: 20.332
A42: 38 | C42: 15 | D42: 20.304 | E42: 20.30233333 | F42: =xg3s+input!$I$9/2*sg3s -> 20.31514516 | G42: =xg3s+input!$I$9/2*sg3s -> 20.31514516 | H42: =xg3s-input!$I$9/2*sg3s -> 20.28952151 | I42: =xg3s-input!$I$9/2*sg3s -> 20.28952151 | J42: 20.45 | K42: 20.15 | L42: 20.302 | M42: 20.272 | N42: 20.332
A43: 39 | C43: 15 | D43: 20.304 | E43: 20.30233333 | F43: =xg3s+input!$I$9/2*sg3s -> 20.31514516 | G43: =xg3s+input!$I$9/2*sg3s -> 20.31514516 | H43: =xg3s-input!$I$9/2*sg3s -> 20.28952151 | I43: =xg3s-input!$I$9/2*sg3s -> 20.28952151 | J43: 20.45 | K43: 20.15 | L43: 20.302 | M43: 20.272 | N43: 20.332
A44: 40 | C44: 15 | D44: 20.304 | E44: 20.30233333 | F44: =xg3s+input!$I$9/2*sg3s -> 20.31514516 | G44: =xg3s+input!$I$9/2*sg3s -> 20.31514516 | H44: =xg3s-input!$I$9/2*sg3s -> 20.28952151 | I44: =xg3s-input!$I$9/2*sg3s -> 20.28952151 | J44: 20.45 | K44: 20.15 | L44: 20.302 | M44: 20.272 | N44: 20.332
A45: 41 | C45: 15 | D45: 20.304 | E45: 20.30233333 | F45: =xg3s+input!$I$9/2*sg3s -> 20.31514516 | G45: =xg3s+input!$I$9/2*sg3s -> 20.31514516 | H45: =xg3s-input!$I$9/2*sg3s -> 20.28952151 | I45: =xg3s-input!$I$9/2*sg3s -> 20.28952151 | J45: 20.45 | K45: 20.15 | L45: 20.302 | M45: 20.272 | N45: 20.332
A46: 42 | C46: 15 | D46: 20.304 | E46: 20.30233333 | F46: =xg3s+input!$I$9/2*sg3s -> 20.31514516 | G46: =xg3s+input!$I$9/2*sg3s -> 20.31514516 | H46: =xg3s-input!$I$9/2*sg3s -> 20.28952151 | I46: =xg3s-input!$I$9/2*sg3s -> 20.28952151 | J46: 20.45 | K46: 20.15 | L46: 20.302 | M46: 20.272 | N46: 20.332
A47: 43 | C47: 15 | D47: 20.304 | E47: 20.30233333 | F47: =xg3s+input!$I$9/2*sg3s -> 20.31514516 | G47: =xg3s+input!$I$9/2*sg3s -> 20.31514516 | H47: =xg3s-input!$I$9/2*sg3s -> 20.28952151 | I47: =xg3s-input!$I$9/2*sg3s -> 20.28952151 | J47: 20.45 | K47: 20.15 | L47: 20.302 | M47: 20.272 | N47: 20.332
A48: 44 | C48: 15 | D48: 20.304 | E48: 20.30233333 | F48: =xg3s+input!$I$9/2*sg3s -> 20.31514516 | G48: =xg3s+input!$I$9/2*sg3s -> 20.31514516 | H48: =xg3s-input!$I$9/2*sg3s -> 20.28952151 | I48: =xg3s-input!$I$9/2*sg3s -> 20.28952151 | J48: 20.45 | K48: 20.15 | L48: 20.302 | M48: 20.272 | N48: 20.332
A49: 45 | C49: 15 | D49: 20.304 | E49: 20.30233333 | F49: =xg3s+input!$I$9/2*sg3s -> 20.31514516 | G49: =xg3s+input!$I$9/2*sg3s -> 20.31514516 | H49: =xg3s-input!$I$9/2*sg3s -> 20.28952151 | I49: =xg3s-input!$I$9/2*sg3s -> 20.28952151 | J49: 20.45 | K49: 20.15 | L49: 20.302 | M49: 20.272 | N49: 20.332
A50: 46 | C50: 15 | D50: 20.304 | E50: 20.30233333 | F50: =xg3s+input!$I$9/2*sg3s -> 20.31514516 | G50: =xg3s+input!$I$9/2*sg3s -> 20.31514516 | H50: =xg3s-input!$I$9/2*sg3s -> 20.28952151 | I50: =xg3s-input!$I$9/2*sg3s -> 20.28952151 | J50: 20.45 | K50: 20.15 | L50: 20.302 | M50: 20.272 | N50: 20.332
A51: 47 | C51: 15 | D51: 20.304 | E51: 20.30233333 | F51: =xg3s+input!$I$9/2*sg3s -> 20.31514516 | G51: =xg3s+input!$I$9/2*sg3s -> 20.31514516 | H51: =xg3s-input!$I$9/2*sg3s -> 20.28952151 | I51: =xg3s-input!$I$9/2*sg3s -> 20.28952151 | J51: 20.45 | K51: 20.15 | L51: 20.302 | M51: 20.272 | N51: 20.332
A52: 48 | C52: 15 | D52: 20.304 | E52: 20.30233333 | F52: =xg3s+input!$I$9/2*sg3s -> 20.31514516 | G52: =xg3s+input!$I$9/2*sg3s -> 20.31514516 | H52: =xg3s-input!$I$9/2*sg3s -> 20.28952151 | I52: =xg3s-input!$I$9/2*sg3s -> 20.28952151 | J52: 20.45 | K52: 20.15 | L52: 20.302 | M52: 20.272 | N52: 20.332
A53: 49 | C53: 15 | D53: 20.304 | E53: 20.30233333 | F53: =xg3s+input!$I$9/2*sg3s -> 20.31514516 | G53: =xg3s+input!$I$9/2*sg3s -> 20.31514516 | H53: =xg3s-input!$I$9/2*sg3s -> 20.28952151 | I53: =xg3s-input!$I$9/2*sg3s -> 20.28952151 | J53: 20.45 | K53: 20.15 | L53: 20.302 | M53: 20.272 | N53: 20.332
A54: 50 | C54: 15 | D54: 20.304 | E54: 20.30233333 | F54: =xg3s+input!$I$9/2*sg3s -> 20.31514516 | G54: =xg3s+input!$I$9/2*sg3s -> 20.31514516 | H54: =xg3s-input!$I$9/2*sg3s -> 20.28952151 | I54: =xg3s-input!$I$9/2*sg3s -> 20.28952151 | J54: 20.45 | K54: 20.15 | L54: 20.302 | M54: 20.272 | N54: 20.332
D59: k faktor
D60: 4
D61: 6

Sheet info
B2: Sie benutzen eine Vorlage von www.sixsigmblackbelt.de
B4: benötigen Sie Unterstützung
B5: wenden Sie sich bitte per Mail an | G5: roland.schnurr@sixsigmablackbelt.de
B6: https://www.sixsigmablackbelt.de
B8: Berechnung Minitab mit k Faktor = 6
